fUST/lending_fUST_20240726
["ID","MTS","AMOUNT","RATE_DAILY","PERIOD"]
[333240170,1721965844289,-5934.86,0.00013698,2]
[333240172,1721965844300,-993.6,0.00013698,2]
[333240173,1721965844310,-504.02751053,0.00013698,2]
[333240174,1721965844321,-500.0,0.00013698,2]
[333240175,1721965844337,-500.0,0.00013698,2]
[333240176,1721965844347,-500.0,0.00013698,2]
[333240178,1721965844358,-500.8979793,0.00013698,2]
[333240180,1721965844368,-500.0,0.00013698,2]
[333240181,1721965844379,-500.0,0.00013698,2]
[333240183,1721965844389,-505.47502758,0.00013698,2]
[333240185,1721965844399,-500.0,0.00013698,2]
[333240187,1721965844410,-500.0,0.00013698,2]
[333240189,1721965844420,-505.76600272,0.00013698,2]
[333240191,1721965844431,-500.0,0.00013698,2]
[333240193,1721965844443,-500.0,0.00013698,2]
[333240194,1721965844456,-500.0,0.00013698,2]
[333240196,1721965844467,-500.0,0.00013698,2]
[333240198,1721965844479,-500.0,0.00013698,2]
[333240200,1721965844490,-500.0,0.00013698,2]
[333240202,1721965844501,-1042.34,0.00013698,2]
[333240204,1721965844513,-604.23,0.00013698,2]
[333240207,1721965844524,-500.0,0.00013698,2]
[333240209,1721965844535,-500.0,0.00013698,2]
[333240211,1721965844545,-500.0,0.00013698,2]
[333240213,1721965844555,-500.0,0.00013698,2]
[333240215,1721965844567,-500.0,0.00013698,2]
[333240217,1721965844580,-500.0,0.00013698,2]
[333240219,1721965844589,-500.0,0.00013698,2]
[333240221,1721965844600,-500.0,0.00013698,2]
[333240223,1721965844611,-578.68,0.00013698,2]
[333240225,1721965844622,-500.0,0.00013698,2]
[333240228,1721965844633,-500.0,0.00013698,2]
[333240230,1721965844643,-500.0,0.00013698,2]
[333240232,1721965844652,-500.0,0.00013698,2]
[333240233,1721965844662,-475.97552572,0.00013698,2]
[333240234,1721965845104,-24.02447428,0.00013698,2]
[333240235,1721965845116,-1601.64,0.00013698,2]
[333240236,1721965845127,-398.55609103,0.00013698,2]
[333240237,1721965845137,-500.0,0.00013698,2]
[333240238,1721965845149,-502.47920055,0.00013698,2]
[333240239,1721965845158,-227.95191801,0.00013698,2]
[333240240,1721965845171,-255.70376863,0.00013698,2]
[333240241,1721965845182,-500.0,0.00013698,2]
[333240242,1721965845194,-500.0,0.00013698,2]
[333240243,1721965845205,-1941.37,0.00013698,2]
[333240245,1721965845216,-1941.37,0.00013698,2]
[333240246,1721965845226,-1941.37,0.00013698,2]
[333240248,1721965845236,-1314.20834616,0.00013698,2]
[333240250,1721965845254,-627.16165384,0.00013698,2]
[333240252,1721965845266,-1941.37,0.00013698,2]
[333240254,1721965845276,-1941.37,0.00013698,2]
[333240256,1721965845287,-1941.37,0.00013698,2]
[333240258,1721965845297,-1941.37,0.00013698,2]
[333240260,1721965845307,-1941.37,0.00013698,2]
[333240262,1721965845318,-1941.37,0.00013698,2]
[333240264,1721965845330,-1941.37,0.00013698,2]
[333240266,1721965845339,-1941.37,0.00013698,2]
[333240268,1721965845349,-1941.37,0.00013698,2]
[333240270,1721965845359,-1941.37,0.00013698,2]
[333240272,1721965845370,-500.0,0.00013698,2]
[333240274,1721965845380,-2948.48,0.00013698,2]
[333240276,1721965845390,-501.4892621,0.00013698,2]
[333240278,1721965845400,-362.66853865,0.00013698,2]
[333240280,1721965845411,-501.42190448,0.00013698,2]
[333240281,1721965845421,-734.61,0.00013698,2]
[333240282,1721965845431,-723.2,0.00013698,2]
[333240283,1721965845442,-504.09793732,0.00013698,2]
[333240284,1721965845452,-500.0,0.00013698,2]
[333240285,1721965845462,-700.58,0.00013698,2]
[333240286,1721965845472,-679.64,0.00013698,2]
[333240287,1721965845483,-485.61762605,0.00013698,2]
[333240288,1721965845492,-500.0,0.00013698,2]
[333240289,1721965845502,-500.0,0.00013698,2]
[333240290,1721965845512,-500.0,0.00013698,2]
[333240291,1721965845522,-500.0,0.00013698,2]
[333240292,1721965845532,-500.0,0.00013698,2]
[333240293,1721965845543,-825.59,0.00013698,2]
[333240294,1721965845553,-734.87,0.00013698,2]
[333240295,1721965845563,-1489.3,0.00013698,2]
[333240296,1721965845574,-500.0,0.00013698,2]
[333240297,1721965845584,-505.8,0.00013698,2]
[333240298,1721965845594,-500.0,0.00013698,2]
[333240299,1721965845604,-500.0,0.00013698,2]
[333240300,1721965845614,-500.0,0.00013698,2]
[333240301,1721965845624,-500.0,0.00013698,2]
[333240302,1721965845633,-502.67668242,0.00013698,2]
[333240303,1721965845644,-500.0,0.00013698,2]
[333240304,1721965845653,-1110.73,0.00013698,2]
[333240305,1721965845664,-501.17139742,0.00013698,2]
[333240306,1721965845674,-1192.27,0.00013698,2]
[333240307,1721965845684,-501.60274309,0.00013698,2]
[333240308,1721965845695,-503.44337496,0.00013698,2]
[333240309,1721965845704,-500.0,0.00013698,2]
[333240310,1721965845717,-500.0,0.00013698,2]
[333240311,1721965845727,-500.79460399,0.00013698,2]
[333240312,1721965845737,-503.26300799,0.00013698,2]
[333240313,1721965845746,-511.72464627,0.00013698,2]
[333240314,1721965845757,-380.13474165,0.00013698,2]
[333240315,1721965845768,-500.0,0.00013698,2]
[333240316,1721965845778,-164.42634597,0.00013698,2]
[333240317,1721965845789,-500.0,0.00013698,2]
[333240318,1721965845799,-519.77707225,0.00013698,2]
[333240319,1721965845808,-1516.63,0.00013698,2]
[333240320,1721965845818,-500.0,0.00013698,2]
[333240321,1721965845828,-1198.3,0.00013698,2]
[333240322,1721965845838,-500.0,0.00013698,2]
[333240323,1721965845848,-671.72,0.00013698,2]
[333240324,1721965845858,-500.0,0.00013698,2]
[333240325,1721965845868,-500.0,0.00013698,2]
[333240326,1721965845878,-1120.04,0.00013698,2]
[333240327,1721965845888,-620.69542436,0.00013698,2]
[333240328,1721965845898,-500.0,0.00013698,2]
[333240329,1721965845908,-2148.87,0.00013698,2]
[333240330,1721965845917,-502.56930598,0.00013698,2]
[333240331,1721965845927,-500.0,0.00013698,2]
[333240332,1721965845936,-500.0,0.00013698,2]
[333240333,1721965845946,-1919.52,0.00013698,2]
[333240334,1721965845955,-500.0,0.00013698,2]
[333240335,1721965845964,-500.0,0.00013698,2]
[333240336,1721965845974,-500.0,0.00013698,2]
[333240337,1721965845984,-500.0,0.00013698,2]
[333240338,1721965845994,-1075.23,0.00013698,2]
[333240339,1721965846004,-1026.83,0.00013698,2]
[333240340,1721965846014,-327.07571737,0.00013698,2]
[333240341,1721965846023,-235.66710842,0.00013698,2]
[333240342,1721965846033,-500.0,0.00013698,2]
[333240343,1721965846043,-500.0,0.00013698,2]
[333240344,1721965846052,-500.0,0.00013698,2]
[333240345,1721965846062,-500.0,0.00013698,2]
[333240346,1721965846071,-500.0,0.00013698,2]
[333240347,1721965846081,-502.40468811,0.00013698,2]
[333240348,1721965846091,-500.0,0.00013698,2]
[333240349,1721965846102,-854.11,0.00013698,2]
[333240350,1721965846112,-500.0,0.00013698,2]
[333240351,1721965846121,-500.0,0.00013698,2]
[333240352,1721965846131,-500.0,0.00013698,2]
[333240353,1721965846140,-689.69,0.00013698,2]
[333240354,1721965846151,-500.0,0.00013698,2]
[333240355,1721965846160,-500.0,0.00013698,2]
[333240356,1721965846169,-526.7431857,0.00013698,2]
[333240357,1721965846179,-1645.24733159,0.00013698,2]
[333241112,1721967038721,-398.5088418,0.00012547,2]
[333241113,1721967038731,-634.39408568,0.00013271,2]
[333241114,1721967038741,-200.0,0.00013425,2]
[333241115,1721967038751,-2126.61751744,0.00013431,2]
[333241133,1721967042908,-3180.82966225,0.00013431,2]
[333241134,1721967042920,-2599.81711317,0.00013598,2]
[333241135,1721967042932,-1283.68970073,0.00013598,2]
[333241136,1721967042942,-367.53930495,0.00013608,2]
[333241137,1721967042953,-300.0,0.00013639,2]
[333241138,1721967042963,-423044.440206,0.00013688,2]
[333241139,1721967042974,-811.26,0.00013698,2]
[333241140,1721967042984,-811.26,0.00013698,2]
[333241141,1721967042995,-811.26,0.00013698,2]
[333241142,1721967043006,-811.26,0.00013698,2]
[333241143,1721967043016,-811.26,0.00013698,2]
[333241144,1721967043027,-811.26,0.00013698,2]
[333241145,1721967043037,-811.26,0.00013698,2]
[333241146,1721967043047,-811.26,0.00013698,2]
[333241147,1721967043057,-811.26,0.00013698,2]
[333241148,1721967043070,-811.26,0.00013698,2]
[333241149,1721967043080,-811.26,0.00013698,2]
[333241150,1721967043090,-811.26,0.00013698,2]
[333241151,1721967043100,-811.26,0.00013698,2]
[333241152,1721967043111,-811.26,0.00013698,2]
[333241153,1721967043121,-811.26,0.00013698,2]
[333241154,1721967043131,-811.26,0.00013698,2]
[333241155,1721967043142,-811.26,0.00013698,2]
[333241156,1721967043152,-811.26,0.00013698,2]
[333241157,1721967043162,-811.26,0.00013698,2]
[333241158,1721967043172,-811.26,0.00013698,2]
[333241159,1721967043182,-811.26,0.00013698,2]
[333241160,1721967043191,-811.26,0.00013698,2]
[333241161,1721967043201,-811.26,0.00013698,2]
[333241162,1721967043210,-811.35169786,0.00013698,2]
[333241164,1721967043220,-3861.48963333,0.00013698,2]
[333241166,1721967043230,-7526.2952353,0.00013698,2]
[333241167,1721967043240,-507.66934,0.00013698,2]
[333241168,1721967043250,-42062.31314658,0.00013698,2]
[333241169,1721967043260,-2190.19,0.00013698,2]
[333241170,1721967043270,-2190.19,0.00013698,2]
[333241171,1721967043280,-2190.19,0.00013698,2]
[333241172,1721967043292,-2190.19,0.00013698,2]
[333241173,1721967043302,-2190.19,0.00013698,2]
[333241174,1721967043313,-2190.19,0.00013698,2]
[333241175,1721967043324,-2190.19,0.00013698,2]
[333241176,1721967043334,-2190.19,0.00013698,2]
[333241177,1721967043346,-2190.19,0.00013698,2]
[333241178,1721967043356,-2190.19,0.00013698,2]
[333241179,1721967043367,-2190.19,0.00013698,2]
[333241180,1721967043376,-2190.19,0.00013698,2]
[333241181,1721967043386,-2190.19,0.00013698,2]
[333241182,1721967043396,-2190.19,0.00013698,2]
[333241183,1721967043406,-2190.19,0.00013698,2]
[333241184,1721967043416,-2190.19,0.00013698,2]
[333241185,1721967043426,-2190.19,0.00013698,2]
[333241186,1721967043436,-2190.19,0.00013698,2]
[333241187,1721967043446,-2190.19,0.00013698,2]
[333241188,1721967043456,-2190.19,0.00013698,2]
[333241189,1721967043467,-443.55057199,0.00013698,2]
[333241190,1721967043482,-1746.63942801,0.00013698,2]
[333241191,1721967043492,-2190.19,0.00013698,2]
[333241192,1721967043502,-36.77112905,0.00013698,2]
[333241193,1721967043846,-2153.41887095,0.00013698,2]
[333241194,1721967043857,-500.0,0.00013698,2]
[333241195,1721967043867,-2190.20556221,0.00013698,2]
[333241196,1721967043876,-500.0,0.00013698,2]
[333241197,1721967043886,-500.0,0.00013698,2]
[333241198,1721967043896,-513.92849081,0.00013698,2]
[333241199,1721967043905,-500.0,0.00013698,2]
[333241200,1721967043915,-507.39836349,0.00013698,2]
[333241201,1721967043925,-500.0,0.00013698,2]
[333241202,1721967043935,-484.74491256,0.00013698,2]
[333241203,1721967043945,-500.0,0.00013698,2]
[333241204,1721967043954,-500.95844773,0.00013698,2]
[333241205,1721967043965,-506.9181094,0.00013698,2]
[333241206,1721967043974,-509.44834222,0.00013698,2]
[333241207,1721967043984,-500.0,0.00013698,2]
[333241208,1721967043995,-500.0,0.00013698,2]
[333241210,1721967044005,-107.71980932,0.00013698,2]
[333241224,1721967855335,150.0,0.0001,30]
[333241226,1721968014157,-225.04706201,0.0001,2]
[333241227,1721968014179,-75.74772497,0.00013425,2]
[333241230,1721968209493,150.0,0.00025,120]
[333241328,1721968240162,-300.0,0.00013424,2]
[333241329,1721968240172,-200.0,0.00013425,2]
[333241330,1721968240182,-7526.2952353,0.00013425,2]
[333241331,1721968240191,-274.6491562,0.00013561,2]
[333241332,1721968240201,-1155.32073063,0.00013598,2]
[333241333,1721968240210,-2287.43912587,0.00013598,2]
[333241334,1721968240220,-367.53930495,0.00013635,2]
[333241335,1721968240229,-324.97904296,0.00013655,2]
[333241336,1721968240239,-105239.22702915,0.00013688,2]
[333241348,1721968243090,-3247.2,0.00013688,2]
[333241349,1721968243201,-48250.11495544,0.00013688,2]
[333241364,1721968246194,-10463.62927614,0.00013688,2]
[333241514,1721969440335,-160.70295453,0.0001226,5]
[333241515,1721969440346,-620.71970429,0.00013238,2]
[333241516,1721969440356,-4278.04542807,0.00013306,2]
[333241517,1721969440369,-367.53930495,0.00013406,2]
[333241518,1721969440379,-200.0,0.00013425,2]
[333241519,1721969440388,-300.0,0.00013499,2]
[333241520,1721969440398,-153.0,0.000135,2]
[333241521,1721969440407,-307.9964411,0.000135,2]
[333241522,1721969440417,-153.0,0.000135,2]
[333241523,1721969440427,-153.0,0.000135,2]
[333241524,1721969440439,-153.0,0.000135,2]
[333241525,1721969440451,-206.7446654,0.000135,2]
[333241526,1721969440463,-306.0,0.000135,2]
[333241527,1721969440473,-153.0,0.000135,2]
[333241529,1721969440485,-153.0,0.000135,2]
[333241531,1721969440496,-274.6491562,0.00013561,2]
[333241532,1721969440508,-2612.41626506,0.00013588,2]
[333241533,1721969440520,-1283.68970073,0.00013598,2]
[333241534,1721969440531,-153.0,0.000136,2]
[333241535,1721969440542,-153.0,0.000136,2]
[333241536,1721969440553,-587.7262463,0.000136,2]
[333241537,1721969440729,-153.0,0.000136,2]
[333241538,1721969440739,-206.7446654,0.000136,2]
[333241539,1721969440749,-153.0,0.000136,2]
[333241540,1721969440764,-153.0,0.000136,2]
[333241541,1721969440776,-153.0,0.000136,2]
[333241542,1721969440786,-206.7446654,0.000136,2]
[333241543,1721969440796,-206.3125778,0.000136,2]
[333241544,1721969440809,-153.0,0.000136,2]
[333241545,1721969440819,-153.0,0.000136,2]
[333241546,1721969440829,-153.0,0.000136,2]
[333241547,1721969440839,-34387.3859738,0.00013678,2]
[333241548,1721969440851,-53829.64178957,0.00013688,2]
[333241549,1721969440861,-1932.3551857,0.00013688,2]
[333241550,1721969440872,-12566.11,0.00013688,2]
[333241551,1721969440881,-38208.2066376,0.00013688,2]
[333241552,1721969440891,-2654.9,0.00013698,2]
[333241553,1721969440901,-2654.9,0.00013698,2]
[333241554,1721969440910,-2654.9,0.00013698,2]
[333241555,1721969440919,-2654.9,0.00013698,2]
[333241556,1721969440929,-2654.9,0.00013698,2]
[333241557,1721969440939,-2654.9,0.00013698,2]
[333241558,1721969440949,-2654.9,0.00013698,2]
[333241559,1721969440958,-2654.9,0.00013698,2]
[333241560,1721969440969,-2654.9,0.00013698,2]
[333241561,1721969440980,-2654.9,0.00013698,2]
[333241562,1721969440992,-3861.48963333,0.00013698,2]
[333241563,1721969441002,-2654.9,0.00013698,2]
[333241564,1721969441013,-2654.9,0.00013698,2]
[333241565,1721969441024,-2654.9,0.00013698,2]
[333241566,1721969441035,-2654.9,0.00013698,2]
[333241567,1721969441045,-2654.9,0.00013698,2]
[333241568,1721969441057,-2654.9,0.00013698,2]
[333241569,1721969441068,-2654.9,0.00013698,2]
[333241570,1721969441078,-2654.9,0.00013698,2]
[333241571,1721969441090,-2654.9,0.00013698,2]
[333241572,1721969441102,-2654.9,0.00013698,2]
[333241573,1721969441114,-2654.9,0.00013698,2]
[333241574,1721969441124,-2654.9,0.00013698,2]
[333241575,1721969441134,-2654.9,0.00013698,2]
[333241576,1721969441146,-2654.98226985,0.00013698,2]
[333241577,1721969441157,-795.357054,0.00013698,2]
[333241578,1721969441169,-795.357054,0.00013698,2]
[333241579,1721969441179,-795.357054,0.00013698,2]
[333241580,1721969441189,-795.357054,0.00013698,2]
[333241581,1721969441199,-795.357054,0.00013698,2]
[333241582,1721969441208,-795.357054,0.00013698,2]
[333241583,1721969441218,-795.357054,0.00013698,2]
[333241584,1721969441227,-795.357054,0.00013698,2]
[333241585,1721969441237,-795.357054,0.00013698,2]
[333241586,1721969441247,-795.357054,0.00013698,2]
[333241587,1721969441257,-795.357054,0.00013698,2]
[333241588,1721969441267,-795.357054,0.00013698,2]
[333241589,1721969441276,-795.357054,0.00013698,2]
[333241590,1721969441287,-795.357054,0.00013698,2]
[333241591,1721969441297,-795.357054,0.00013698,2]
[333241592,1721969441308,-795.357054,0.00013698,2]
[333241593,1721969441320,-653.572961,0.00013698,2]
[333241594,1721969441332,-653.572961,0.00013698,2]
[333241595,1721969441344,-653.572961,0.00013698,2]
[333241596,1721969441355,-653.572961,0.00013698,2]
[333241597,1721969441366,-653.572961,0.00013698,2]
[333241598,1721969441376,-653.572961,0.00013698,2]
[333241599,1721969441388,-653.572961,0.00013698,2]
[333241600,1721969441399,-653.572961,0.00013698,2]
[333241601,1721969441410,-653.572961,0.00013698,2]
[333241602,1721969441421,-653.572961,0.00013698,2]
[333241603,1721969441435,-653.572961,0.00013698,2]
[333241604,1721969441446,-653.572961,0.00013698,2]
[333241605,1721969441456,-653.572961,0.00013698,2]
[333241606,1721969441467,-653.572961,0.00013698,2]
[333241607,1721969441477,-653.572961,0.00013698,2]
[333241608,1721969441487,-653.572961,0.00013698,2]
[333241609,1721969441499,-653.572961,0.00013698,2]
[333241610,1721969441511,-653.572961,0.00013698,2]
[333241611,1721969441521,-500.0,0.00013698,2]
[333241612,1721969441533,-151.0,0.00013698,2]
[333241613,1721969441544,-151.0,0.00013698,2]
[333241614,1721969441554,-151.0,0.00013698,2]
[333241615,1721969441565,-152.13584,0.00013698,2]
[333241616,1721969441574,-151.0,0.00013698,2]
[333241617,1721969441583,-151.0,0.00013698,2]
[333241618,1721969441593,-171.004588,0.00013698,2]
[333241619,1721969441604,-500.0,0.00013698,2]
[333241620,1721969441615,-503.04489865,0.00013698,2]
[333241621,1721969441626,-507.20628239,0.00013698,2]
[333241622,1721969441638,-151.0,0.00013698,2]
[333241623,1721969441647,-151.0,0.00013698,2]
[333241624,1721969441657,-506.24815418,0.00013698,2]
[333241625,1721969441666,-151.0,0.00013698,2]
[333241626,1721969441675,-154.567772,0.00013698,2]
[333241627,1721969441685,-500.0,0.00013698,2]
[333241628,1721969441695,-500.0,0.00013698,2]
[333241629,1721969441704,-500.55348274,0.00013698,2]
[333241630,1721969441714,-500.0,0.00013698,2]
[333241631,1721969441723,-151.07311,0.00013698,2]
[333241632,1721969441735,-501.58311684,0.00013698,2]
[333241633,1721969441748,-500.0,0.00013698,2]
[333241634,1721969441761,-517.330174,0.00013698,2]
[333241635,1721969441772,-500.0,0.00013698,2]
[333241636,1721969441782,-500.0,0.00013698,2]
[333241637,1721969441792,-500.0,0.00013698,2]
[333241638,1721969441802,-500.0,0.00013698,2]
[333241639,1721969441814,-500.0,0.00013698,2]
[333241640,1721969441824,-500.0,0.00013698,2]
[333241641,1721969441834,-500.0,0.00013698,2]
[333241642,1721969441845,-500.0,0.00013698,2]
[333241643,1721969441858,-500.0,0.00013698,2]
[333241644,1721969441869,-500.0,0.00013698,2]
[333241645,1721969441880,-500.0,0.00013698,2]
[333241646,1721969441890,-500.0,0.00013698,2]
[333241647,1721969441901,-500.0,0.00013698,2]
[333241648,1721969441913,-500.0,0.00013698,2]
[333241649,1721969441924,-500.0,0.00013698,2]
[333241650,1721969441936,-502.26495527,0.00013698,2]
[333241651,1721969441947,-500.0,0.00013698,2]
[333241652,1721969441958,-550.54050196,0.00013698,2]
[333241653,1721969441969,-515.03251969,0.00013698,2]
[333241654,1721969441981,-504.00163031,0.00013698,2]
[333241655,1721969441991,-500.0,0.00013698,2]
[333241656,1721969442002,-500.0,0.00013698,2]
[333241657,1721969442013,-640.54637123,0.00013698,2]
[333241658,1721969442023,-500.0,0.00013698,2]
[333241659,1721969442033,-500.0,0.00013698,2]
[333241660,1721969442042,-151.0,0.00013698,2]
[333241661,1721969442053,-500.0,0.00013698,2]
[333241662,1721969442065,-151.0,0.00013698,2]
[333241663,1721969442074,-151.0,0.00013698,2]
[333241664,1721969442084,-151.0,0.00013698,2]
[333241665,1721969442095,-151.0,0.00013698,2]
[333241666,1721969442106,-151.0,0.00013698,2]
[333241667,1721969442117,-151.0,0.00013698,2]
[333241668,1721969442127,-151.0,0.00013698,2]
[333241669,1721969442137,-500.0,0.00013698,2]
[333241670,1721969442147,-151.26329,0.00013698,2]
[333241671,1721969442158,-509.22561208,0.00013698,2]
[333241672,1721969442170,-151.0,0.00013698,2]
[333241673,1721969442180,-151.0,0.00013698,2]
[333241674,1721969442190,-500.0,0.00013698,2]
[333241675,1721969442201,-151.0,0.00013698,2]
[333241676,1721969442212,-151.0,0.00013698,2]
[333241677,1721969442224,-151.0,0.00013698,2]
[333241678,1721969442235,-512.0384615,0.00013698,2]
[333241679,1721969442246,-151.0,0.00013698,2]
[333241680,1721969442256,-151.0,0.00013698,2]
[333241681,1721969442267,-292.623605,0.00013698,2]
[333241682,1721969442278,-505.60284264,0.00013698,2]
[333241683,1721969442288,-504.23758031,0.00013698,2]
[333241684,1721969442298,-503.8757368,0.00013698,2]
[333241685,1721969442312,-500.0,0.00013698,2]
[333241686,1721969442322,-151.0,0.00013698,2]
[333241687,1721969442332,-151.0,0.00013698,2]
[333241688,1721969442342,-178.924965,0.00013698,2]
[333241689,1721969442353,-500.0,0.00013698,2]
[333241690,1721969442362,-151.0,0.00013698,2]
[333241691,1721969442372,-151.0,0.00013698,2]
[333241692,1721969442382,-500.0,0.00013698,2]
[333241693,1721969442391,-500.0,0.00013698,2]
[333241694,1721969442400,-500.0,0.00013698,2]
[333241695,1721969442410,-574.9,0.00013698,2]
[333241696,1721969442419,-151.0,0.00013698,2]
[333241697,1721969442429,-166.458948,0.00013698,2]
[333241698,1721969442438,-151.0,0.00013698,2]
[333241699,1721969442447,-151.0,0.00013698,2]
[333241700,1721969442457,-151.0,0.00013698,2]
[333241701,1721969442466,-151.0,0.00013698,2]
[333241702,1721969442477,-151.0,0.00013698,2]
[333241703,1721969442486,-445.50083456,0.00013698,2]
[333241704,1721969442495,-151.0,0.00013698,2]
[333241705,1721969442505,-153.230769,0.00013698,2]
[333241706,1721969442514,-500.0,0.00013698,2]
[333241707,1721969442524,-500.0,0.00013698,2]
[333241708,1721969442534,-500.0,0.00013698,2]
[333241709,1721969442544,-151.640203,0.00013698,2]
[333241710,1721969442553,-500.0,0.00013698,2]
[333241711,1721969442563,-500.0,0.00013698,2]
[333241712,1721969442572,-639.26,0.00013698,2]
[333241713,1721969442583,-500.0,0.00013698,2]
[333241714,1721969442594,-500.0,0.00013698,2]
[333241715,1721969442606,-759.24,0.00013698,2]
[333241716,1721969442617,-501.53796063,0.00013698,2]
[333241717,1721969442627,-500.0,0.00013698,2]
[333241718,1721969442638,-151.0,0.00013698,2]
[333241719,1721969442647,-151.0,0.00013698,2]
[333241720,1721969442656,-151.0,0.00013698,2]
[333241721,1721969442666,-156.052143,0.00013698,2]
[333241722,1721969442675,-243.778987,0.00013698,2]
[333241723,1721969442685,-243.778987,0.00013698,2]
[333241724,1721969442694,-243.778987,0.00013698,2]
[333241725,1721969442703,-500.0,0.00013698,2]
[333241726,1721969442713,-243.778987,0.00013698,2]
[333241727,1721969442722,-243.778987,0.00013698,2]
[333241728,1721969442731,-243.778987,0.00013698,2]
[333241729,1721969442741,-500.0,0.00013698,2]
[333241731,1721969442750,-243.778987,0.00013698,2]
[333241733,1721969442764,-243.778987,0.00013698,2]
[333241734,1721969442774,-243.778987,0.00013698,2]
[333241736,1721969442783,-243.778987,0.00013698,2]
[333241737,1721969442793,-243.778987,0.00013698,2]
[333241738,1721969442803,-243.778987,0.00013698,2]
[333241739,1721969442813,-243.778987,0.00013698,2]
[333241740,1721969442822,-243.778987,0.00013698,2]
[333241741,1721969442831,-243.778987,0.00013698,2]
[333241742,1721969442841,-243.778987,0.00013698,2]
[333241743,1721969442850,-500.0,0.00013698,2]
[333241744,1721969442860,-393.76072345,0.00013698,2]
[333241745,1721969442869,-153.125742,0.00013698,2]
[333241746,1721969442879,-509.80395528,0.00013698,2]
[333241747,1721969442889,-500.0,0.00013698,2]
[333241748,1721969442899,-500.0,0.00013698,2]
[333241749,1721969442908,-562.6930076,0.00013698,2]
[333241751,1721969442918,-223.39696642,0.00013698,2]
[333241752,1721969442927,-500.0,0.00013698,2]
[333241753,1721969442936,-500.0,0.00013698,2]
[333241754,1721969442945,-500.0,0.00013698,2]
[333241755,1721969442956,-500.0,0.00013698,2]
[333241756,1721969442965,-264.24634082,0.00013698,2]
[333241757,1721969442974,-500.0,0.00013698,2]
[333241758,1721969442984,-500.0,0.00013698,2]
[333241759,1721969442993,-168.77667,0.00013698,2]
[333241760,1721969443002,-168.77667,0.00013698,2]
[333241761,1721969443011,-168.77667,0.00013698,2]
[333241762,1721969443020,-168.77667,0.00013698,2]
[333241763,1721969443030,-513.00394085,0.00013698,2]
[333241764,1721969443039,-168.77667,0.00013698,2]
[333241765,1721969443049,-168.77667,0.00013698,2]
[333241766,1721969443058,-168.77667,0.00013698,2]
[333241767,1721969443070,-1163.94,0.00013698,2]
[333241769,1721969443079,-168.77667,0.00013698,2]
[333241770,1721969443089,-500.0,0.00013698,2]
[333241771,1721969443098,-168.77667,0.00013698,2]
[333241772,1721969443107,-168.77667,0.00013698,2]
[333241773,1721969443117,-168.77667,0.00013698,2]
[333241774,1721969443126,-168.77667,0.00013698,2]
[333241775,1721969443136,-168.77667,0.00013698,2]
[333241776,1721969443146,-168.77667,0.00013698,2]
[333241777,1721969443156,-500.0,0.00013698,2]
[333241778,1721969443166,-168.77667,0.00013698,2]
[333241779,1721969443175,-500.0,0.00013698,2]
[333241780,1721969443185,-1171.1,0.00013698,2]
[333241781,1721969443194,-168.77667,0.00013698,2]
[333241782,1721969443204,-500.0,0.00013698,2]
[333241783,1721969443214,-500.0,0.00013698,2]
[333241784,1721969443223,-500.0,0.00013698,2]